[Event "Titled Tuesday Blitz January 31 Late 2023"]
[White "Baches Garcia, Guillermo"]
[Black "Real_OceanStorm"]
[WhiteFideId "2209764"]
[WhiteElo "2327"]
[BlackElo "2671"]
[Result "0-1"]
[Round "05"]
[TimeControl "180+2"]
[Date "2023.01.31"]
[WhiteClock "0:00:01"]
[BlackClock "0:00:12"]

1. e4 {[%clk 0:03:00]}  e5 {[%clk 0:02:59]} 2. Nf3 {[%clk 0:03:00]}  Nc6 {[%clk 0:02:59]} 3. Nc3 {[%clk 0:03:01]}  Nf6 {[%clk 0:02:59]} 4. d4 {[%clk 0:03:02]}  Bb4 {[%clk 0:02:59]} 5. Nxe5 {[%clk 0:03:01]}  Qe7 {[%clk 0:02:59]} 6. Qd3 {[%clk 0:02:56]}  Nxe5 {[%clk 0:02:59]} 7. dxe5 {[%clk 0:02:56]}  Qxe5 {[%clk 0:02:59]} 8. Bd2 {[%clk 0:02:56]}  O-O {[%clk 0:02:59]} 9. O-O-O {[%clk 0:02:53]}  Bxc3 {[%clk 0:02:51]} 10. Bxc3 {[%clk 0:02:41]}  Qxe4 {[%clk 0:02:51]} 11. Qg3 {[%clk 0:02:29]}  Nh5 {[%clk 0:02:21]} 12. Qxc7 {[%clk 0:02:17]}  Qf4+ {[%clk 0:02:20]} 13. Qxf4 {[%clk 0:02:17]}  Nxf4 {[%clk 0:02:21]} 14. g3 {[%clk 0:02:07]}  Ne6 {[%clk 0:02:21]} 15. Bg2 {[%clk 0:01:57]}  a5 {[%clk 0:01:49]} 16. Rd6 {[%clk 0:01:46]}  Re8 {[%clk 0:01:38]} 17. Re1 {[%clk 0:01:36]}  a4 {[%clk 0:01:37]} 18. f4 {[%clk 0:01:29]}  a3 {[%clk 0:01:24]} 19. b3 {[%clk 0:01:22]}  Nc7 {[%clk 0:01:22]} 20. Rxe8+ {[%clk 0:01:04]}  Nxe8 {[%clk 0:01:23]} 21. Rb6 {[%clk 0:01:03]}  Nf6 {[%clk 0:00:58]} 22. Bb4 {[%clk 0:00:58]}  d5 {[%clk 0:00:56]} 23. h3 {[%clk 0:00:54]}  h5 {[%clk 0:00:56]} 24. Bc3 {[%clk 0:00:53]}  Ne4 {[%clk 0:00:44]} 25. Bxe4 {[%clk 0:00:46]}  dxe4 {[%clk 0:00:45]} 26. h4 {[%clk 0:00:44]}  e3 {[%clk 0:00:39]} 27. Bd4 {[%clk 0:00:37]}  e2 {[%clk 0:00:28]} 28. Kd2 {[%clk 0:00:37]}  Bg4 {[%clk 0:00:19]} 29. Rxb7 {[%clk 0:00:37]}  Re8 {[%clk 0:00:19]} 30. Bf2 {[%clk 0:00:03]}  e1=Q+ {[%clk 0:00:14]} 31. Bxe1 {[%clk 0:00:02]}  Re2+ {[%clk 0:00:15]} 32. Kd1 {[%clk 0:00:01]}  Re7+ {[%clk 0:00:12]} 0-1


[Site "https://www.chess.com"]

[Event "Titled Tuesday Blitz January 31 Late 2023"]
[White "Chan, Luis"]
[Black "Pein, Jonathan"]
[WhiteFideId "3216357"]
[BlackFideId "417092"]
[WhiteElo "2208"]
[BlackElo "2265"]
[Result "0-1"]
[Round "05"]
[TimeControl "180+2"]
[Date "2023.01.31"]
[WhiteClock "0:00:07"]
[BlackClock "0:00:19"]

1. b3 {[%clk 0:02:52]}  e5 {[%clk 0:02:54]} 2. Bb2 {[%clk 0:02:51]}  Nc6 {[%clk 0:02:55]} 3. e3 {[%clk 0:02:52]}  d5 {[%clk 0:02:55]} 4. Bb5 {[%clk 0:02:52]}  Bd6 {[%clk 0:02:55]} 5. f4 {[%clk 0:02:52]}  Qh4+ {[%clk 0:02:53]} 6. g3 {[%clk 0:02:53]}  Qe7 {[%clk 0:02:54]} 7. Nf3 {[%clk 0:02:53]}  Bg4 {[%clk 0:02:48]} 8. fxe5 {[%clk 0:02:52]}  Bxe5 {[%clk 0:02:36]} 9. Bxe5 {[%clk 0:02:52]}  Bxf3 {[%clk 0:02:35]} 10. Qxf3 {[%clk 0:02:53]}  Qxe5 {[%clk 0:02:35]} 11. O-O {[%clk 0:02:54]}  Nf6 {[%clk 0:02:31]} 12. Nc3 {[%clk 0:02:53]}  O-O {[%clk 0:02:29]} 13. Bxc6 {[%clk 0:02:53]}  bxc6 {[%clk 0:02:28]} 14. Qf4 {[%clk 0:02:54]}  Rfe8 {[%clk 0:02:26]} 15. Qxe5 {[%clk 0:02:53]}  Rxe5 {[%clk 0:02:27]} 16. Rf4 {[%clk 0:02:54]}  Ne4 {[%clk 0:02:19]} 17. d4 {[%clk 0:02:54]}  Nxc3 {[%clk 0:02:15]} 18. dxe5 {[%clk 0:02:54]}  Ne2+ {[%clk 0:02:15]} 19. Kf2 {[%clk 0:02:53]}  Nxf4 {[%clk 0:02:16]} 20. gxf4 {[%clk 0:02:40]}  Kf8 {[%clk 0:02:15]} 21. Rc1 {[%clk 0:02:28]}  Rd8 {[%clk 0:02:14]} 22. Ke2 {[%clk 0:02:26]}  c5 {[%clk 0:02:09]} 23. c4 {[%clk 0:01:56]}  d4 {[%clk 0:02:09]} 24. Rd1 {[%clk 0:01:55]}  a5 {[%clk 0:02:01]} 25. Kf3 {[%clk 0:01:52]}  Ke7 {[%clk 0:01:56]} 26. Ke4 {[%clk 0:01:47]}  dxe3 {[%clk 0:01:50]} 27. Rg1 {[%clk 0:01:27]}  e2 {[%clk 0:01:40]} 28. Re1 {[%clk 0:01:24]}  Rd2 {[%clk 0:01:38]} 29. Ke3 {[%clk 0:01:21]}  Rxa2 {[%clk 0:01:37]} 30. Rxe2 {[%clk 0:01:22]}  Ra3 {[%clk 0:01:22]} 31. Ke4 {[%clk 0:01:18]}  Rxb3 {[%clk 0:01:22]} 32. Kd5 {[%clk 0:01:19]}  a4 {[%clk 0:01:17]} 33. Kxc5 {[%clk 0:01:14]}  a3 {[%clk 0:01:17]} 34. Kc6 {[%clk 0:01:01]}  Rb2 {[%clk 0:01:08]} 35. Re3 {[%clk 0:01:01]}  a2 {[%clk 0:01:08]} 36. Ra3 {[%clk 0:01:01]}  Rxh2 {[%clk 0:01:08]} 37. c5 {[%clk 0:00:55]}  Rc2 {[%clk 0:01:07]} 38. Kd5 {[%clk 0:00:15]}  h5 {[%clk 0:01:01]} 39. Ra7 {[%clk 0:00:14]}  Kd7 {[%clk 0:00:43]} 40. c6+ {[%clk 0:00:14]}  Rxc6 {[%clk 0:00:29]} 41. Rxa2 {[%clk 0:00:14]}  Rh6 {[%clk 0:00:29]} 42. Ke4 {[%clk 0:00:12]}  h4 {[%clk 0:00:29]} 43. Rh2 {[%clk 0:00:11]}  h3 {[%clk 0:00:29]} 44. Kf5 {[%clk 0:00:10]}  c5 {[%clk 0:00:28]} 45. Ke4 {[%clk 0:00:10]}  Kc6 {[%clk 0:00:28]} 46. f5 {[%clk 0:00:10]}  Rh4+ {[%clk 0:00:22]} 47. Kd3 {[%clk 0:00:10]}  Kd5 {[%clk 0:00:23]} 48. f6 {[%clk 0:00:07]}  g6 {[%clk 0:00:19]} 0-1


[Site "https://www.chess.com"]

[Event "Titled Tuesday Blitz January 31 Late 2023"]
[White "Filgueira, Hernan"]
[Black "Melikhov, Evgeny V."]
[WhiteFideId "101770"]
[BlackFideId "4122046"]
[WhiteElo "2283"]
[BlackElo "2269"]
[Result "1-0"]
[Round "05"]
[TimeControl "180+2"]
[Date "2023.01.31"]
[WhiteClock "0:00:50"]
[BlackClock "0:00:03"]

1. b3 {[%clk 0:02:57]}  e5 {[%clk 0:02:54]} 2. Bb2 {[%clk 0:02:57]}  Nc6 {[%clk 0:02:51]} 3. e3 {[%clk 0:02:58]}  a6 {[%clk 0:02:51]} 4. c4 {[%clk 0:02:57]}  d5 {[%clk 0:02:49]} 5. cxd5 {[%clk 0:02:56]}  Qxd5 {[%clk 0:02:49]} 6. Nc3 {[%clk 0:02:57]}  Qd8 {[%clk 0:02:29]} 7. a3 {[%clk 0:02:55]}  Nf6 {[%clk 0:02:25]} 8. d3 {[%clk 0:02:54]}  Bd6 {[%clk 0:02:24]} 9. Nf3 {[%clk 0:02:53]}  Be6 {[%clk 0:02:24]} 10. Be2 {[%clk 0:02:51]}  Qd7 {[%clk 0:02:21]} 11. O-O {[%clk 0:02:48]}  O-O-O {[%clk 0:02:17]} 12. b4 {[%clk 0:02:47]}  Rhg8 {[%clk 0:01:56]} 13. b5 {[%clk 0:02:47]}  axb5 {[%clk 0:01:55]} 14. Nxb5 {[%clk 0:02:46]}  g5 {[%clk 0:01:55]} 15. Qa4 {[%clk 0:02:45]}  Kb8 {[%clk 0:01:38]} 16. Nxe5 {[%clk 0:02:36]}  Bxe5 {[%clk 0:01:17]} 17. Bxe5 {[%clk 0:02:35]}  Nd5 {[%clk 0:01:17]} 18. Bg3 {[%clk 0:02:21]}  f5 {[%clk 0:01:05]} 19. f4 {[%clk 0:01:59]}  gxf4 {[%clk 0:00:50]} 20. Bxf4 {[%clk 0:01:58]}  Nxf4 {[%clk 0:00:49]} 21. Rxf4 {[%clk 0:01:54]}  Bd5 {[%clk 0:00:48]} 22. e4 {[%clk 0:01:47]}  fxe4 {[%clk 0:00:47]} 23. dxe4 {[%clk 0:01:47]}  Be6 {[%clk 0:00:24]} 24. Raf1 {[%clk 0:01:39]}  Qd2 {[%clk 0:00:19]} 25. R4f2 {[%clk 0:01:10]}  Qe3 {[%clk 0:00:17]} 26. Kh1 {[%clk 0:01:10]}  Rd2 {[%clk 0:00:15]} 27. Rf8+ {[%clk 0:01:08]}  Rxf8 {[%clk 0:00:13]} 28. Rxf8+ {[%clk 0:01:06]}  Bc8 {[%clk 0:00:12]} 29. Bf1 {[%clk 0:00:58]}  Qe1 {[%clk 0:00:07]} 30. Qc4 {[%clk 0:00:54]}  Rf2 {[%clk 0:00:05]} 31. Rxf2 {[%clk 0:00:53]}  Qxf2 {[%clk 0:00:06]} 32. Qe2 {[%clk 0:00:54]}  Qf4 {[%clk 0:00:05]} 33. g3 {[%clk 0:00:52]}  Qe5 {[%clk 0:00:04]} 34. Kg1 {[%clk 0:00:51]}  Bd7 {[%clk 0:00:03]} 35. Qe3 {[%clk 0:00:50]} 1-0


[Site "https://www.chess.com"]

[Event "Titled Tuesday Blitz January 31 Late 2023"]
[White "CheckBits"]
[Black "Foerster-Yialamas, Lucas"]
[BlackFideId "30901774"]
[WhiteElo "2478"]
[BlackElo "2151"]
[Result "0-1"]
[Round "05"]
[TimeControl "180+2"]
[Date "2023.01.31"]
[WhiteClock "0:00:01"]
[BlackClock "0:00:04"]

1. e4 {[%clk 0:02:59]}  e6 {[%clk 0:03:00]} 2. d4 {[%clk 0:02:59]}  b6 {[%clk 0:02:59]} 3. Nf3 {[%clk 0:02:58]}  Bb7 {[%clk 0:02:58]} 4. Bd3 {[%clk 0:02:58]}  Nf6 {[%clk 0:02:58]} 5. Nbd2 {[%clk 0:02:57]}  c5 {[%clk 0:02:55]} 6. c3 {[%clk 0:02:57]}  d5 {[%clk 0:02:50]} 7. e5 {[%clk 0:02:57]}  Nfd7 {[%clk 0:02:47]} 8. O-O {[%clk 0:02:55]}  Nc6 {[%clk 0:02:47]} 9. a3 {[%clk 0:02:54]}  Be7 {[%clk 0:02:47]} 10. b4 {[%clk 0:02:49]}  a6 {[%clk 0:02:47]} 11. Re1 {[%clk 0:02:46]}  c4 {[%clk 0:02:42]} 12. Bc2 {[%clk 0:02:44]}  b5 {[%clk 0:02:39]} 13. a4 {[%clk 0:02:39]}  Qb6 {[%clk 0:02:35]} 14. axb5 {[%clk 0:02:31]}  axb5 {[%clk 0:02:36]} 15. Rxa8+ {[%clk 0:02:31]}  Bxa8 {[%clk 0:02:35]} 16. Nf1 {[%clk 0:02:31]}  h6 {[%clk 0:02:29]} 17. Ng3 {[%clk 0:02:30]}  Kd8 {[%clk 0:02:23]} 18. Nh5 {[%clk 0:02:29]}  g6 {[%clk 0:02:21]} 19. Nf4 {[%clk 0:02:25]}  g5 {[%clk 0:02:20]} 20. Nh5 {[%clk 0:02:24]}  g4 {[%clk 0:02:19]} 21. Nd2 {[%clk 0:02:21]}  Nxb4 {[%clk 0:02:07]} 22. cxb4 {[%clk 0:02:15]}  Qxd4 {[%clk 0:02:07]} 23. Ba3 {[%clk 0:01:59]}  Nxe5 {[%clk 0:02:02]} 24. Qe2 {[%clk 0:01:29]}  Nd3 {[%clk 0:02:01]} 25. Bxd3 {[%clk 0:01:08]}  cxd3 {[%clk 0:02:02]} 26. Qe3 {[%clk 0:01:05]}  Qxe3 {[%clk 0:00:42]} 27. Rxe3 {[%clk 0:01:04]}  d4 {[%clk 0:00:32]} 28. Rxd3 {[%clk 0:00:59]}  e5 {[%clk 0:00:32]} 29. f3 {[%clk 0:00:36]}  gxf3 {[%clk 0:00:22]} 30. gxf3 {[%clk 0:00:35]}  Rg8+ {[%clk 0:00:20]} 31. Kf2 {[%clk 0:00:20]}  Bh4+ {[%clk 0:00:19]} 32. Ng3 {[%clk 0:00:18]}  f5 {[%clk 0:00:19]} 33. f4 {[%clk 0:00:14]}  Be4 {[%clk 0:00:06]} 34. Nxe4 {[%clk 0:00:05]}  fxe4 {[%clk 0:00:07]} 35. Rd1 {[%clk 0:00:04]}  exf4 {[%clk 0:00:07]} 36. Rxd4+ {[%clk 0:00:04]}  Kc7 {[%clk 0:00:07]} 37. Rxe4 {[%clk 0:00:05]}  fxg3+ {[%clk 0:00:06]} 38. hxg3 {[%clk 0:00:02]}  Bxg3+ {[%clk 0:00:07]} 39. Ke2 {[%clk 0:00:02]}  Bd6 {[%clk 0:00:06]} 40. Bc1 {[%clk 0:00:01]}  h5 {[%clk 0:00:05]} 41. Bd2 {[%clk 0:00:01]}  Rg4 {[%clk 0:00:04]} 0-1


[Site "https://www.chess.com"]

[Event "Titled Tuesday Blitz January 31 Late 2023"]
[White "Smith, Garrett L"]
[Black "Hernandez Sanchez, Elvis De La Caridad"]
[WhiteFideId "2024829"]
[BlackFideId "6400353"]
[WhiteElo "2047"]
[BlackElo "2243"]
[Result "0-1"]
[Round "05"]
[TimeControl "180+2"]
[Date "2023.01.31"]
[WhiteClock "0:00:22"]
[BlackClock "0:00:43"]

1. e4 {[%clk 0:03:00]}  c5 {[%clk 0:02:58]} 2. a3 {[%clk 0:03:00]}  d5 {[%clk 0:02:54]} 3. exd5 {[%clk 0:03:00]}  Nf6 {[%clk 0:02:54]} 4. Bb5+ {[%clk 0:02:58]}  Nbd7 {[%clk 0:02:49]} 5. c4 {[%clk 0:02:57]}  a6 {[%clk 0:02:41]} 6. Ba4 {[%clk 0:02:57]}  b5 {[%clk 0:02:33]} 7. cxb5 {[%clk 0:02:42]}  Nb6 {[%clk 0:02:31]} 8. Nf3 {[%clk 0:02:24]}  Nfxd5 {[%clk 0:02:24]} 9. bxa6+ {[%clk 0:02:16]}  Nxa4 {[%clk 0:02:21]} 10. Qxa4+ {[%clk 0:02:17]}  Bd7 {[%clk 0:02:19]} 11. Qc4 {[%clk 0:02:11]}  e6 {[%clk 0:02:15]} 12. Nc3 {[%clk 0:02:07]}  Nb6 {[%clk 0:02:11]} 13. Qe2 {[%clk 0:02:07]}  c4 {[%clk 0:02:06]} 14. d3 {[%clk 0:02:07]}  cxd3 {[%clk 0:01:54]} 15. Qxd3 {[%clk 0:02:07]}  Be7 {[%clk 0:01:51]} 16. O-O {[%clk 0:02:05]}  O-O {[%clk 0:01:51]} 17. Ne5 {[%clk 0:02:00]}  Bc8 {[%clk 0:01:39]} 18. Qxd8 {[%clk 0:01:43]}  Bxd8 {[%clk 0:01:39]} 19. Rd1 {[%clk 0:01:33]}  Bxa6 {[%clk 0:01:35]} 20. Be3 {[%clk 0:01:28]}  Bc7 {[%clk 0:01:28]} 21. Nd7 {[%clk 0:01:19]}  Nxd7 {[%clk 0:01:24]} 22. Rxd7 {[%clk 0:01:20]}  Be5 {[%clk 0:01:22]} 23. Rc1 {[%clk 0:01:18]}  Rfb8 {[%clk 0:01:18]} 24. Rd2 {[%clk 0:01:01]}  h5 {[%clk 0:01:14]} 25. h3 {[%clk 0:01:01]}  Rb3 {[%clk 0:01:08]} 26. Bc5 {[%clk 0:00:55]}  Rc8 {[%clk 0:00:56]} 27. Ne4 {[%clk 0:00:40]}  Rxb2 {[%clk 0:00:48]} 28. Rxb2 {[%clk 0:00:37]}  Bxb2 {[%clk 0:00:49]} 29. Rb1 {[%clk 0:00:35]}  Be5 {[%clk 0:00:47]} 30. Rb6 {[%clk 0:00:29]}  Bd3 {[%clk 0:00:46]} 31. Bd6 {[%clk 0:00:22]}  Rc1# {[%clk 0:00:43]} 0-1


[Site "https://www.chess.com"]

[Event "Titled Tuesday Blitz January 31 Late 2023"]
[White "Kaplan, Avi Harrison"]
[Black "Szyszylo, Rafal"]
[WhiteFideId "30934559"]
[BlackFideId "1109626"]
[WhiteElo "2146"]
[BlackElo "2091"]
[Result "1-0"]
[Round "05"]
[TimeControl "180+2"]
[Date "2023.01.31"]
[WhiteClock "0:01:25"]
[BlackClock "0:00:09"]

1. e4 {[%clk 0:03:00]}  d6 {[%clk 0:02:54]} 2. d4 {[%clk 0:02:58]}  g6 {[%clk 0:02:54]} 3. c4 {[%clk 0:02:55]}  Nf6 {[%clk 0:02:55]} 4. Nc3 {[%clk 0:02:55]}  Bg7 {[%clk 0:02:52]} 5. Nge2 {[%clk 0:02:55]}  O-O {[%clk 0:02:51]} 6. f3 {[%clk 0:02:52]}  e5 {[%clk 0:02:51]} 7. Be3 {[%clk 0:02:52]}  c6 {[%clk 0:02:49]} 8. Qd2 {[%clk 0:02:51]}  Nbd7 {[%clk 0:02:49]} 9. O-O-O {[%clk 0:02:50]}  a6 {[%clk 0:02:47]} 10. g4 {[%clk 0:02:49]}  Qa5 {[%clk 0:02:45]} 11. h4 {[%clk 0:02:48]}  exd4 {[%clk 0:02:21]} 12. Nxd4 {[%clk 0:02:46]}  Ne5 {[%clk 0:02:19]} 13. h5 {[%clk 0:02:45]}  b5 {[%clk 0:02:07]} 14. Bh6 {[%clk 0:02:36]}  Nxf3 {[%clk 0:01:42]} 15. Nxf3 {[%clk 0:02:32]}  Bxh6 {[%clk 0:01:40]} 16. Qxh6 {[%clk 0:02:27]}  Nxg4 {[%clk 0:01:40]} 17. Qd2 {[%clk 0:02:12]}  Be6 {[%clk 0:01:30]} 18. hxg6 {[%clk 0:02:05]}  fxg6 {[%clk 0:01:25]} 19. Qxd6 {[%clk 0:01:55]}  Rae8 {[%clk 0:01:10]} 20. Ng5 {[%clk 0:01:48]}  b4 {[%clk 0:00:27]} 21. Nxe6 {[%clk 0:01:26]}  bxc3 {[%clk 0:00:27]} 22. Qd7 {[%clk 0:01:26]}  cxb2+ {[%clk 0:00:16]} 23. Kb1 {[%clk 0:01:26]}  Nf6 {[%clk 0:00:09]} 24. Qg7# {[%clk 0:01:25]} 1-0


[Site "https://www.chess.com"]

[Event "Titled Tuesday Blitz January 31 Late 2023"]
[White "Rocks, Daniel"]
[Black "Golubka, Petro"]
[WhiteFideId "2402408"]
[BlackFideId "14114224"]
[WhiteElo "2008"]
[BlackElo "2371"]
[Result "0-1"]
[Round "05"]
[TimeControl "180+2"]
[Date "2023.01.31"]
[WhiteClock "0:00:33"]
[BlackClock "0:00:51"]

1. e4 {[%clk 0:03:00]}  e6 {[%clk 0:02:56]} 2. d4 {[%clk 0:02:58]}  d5 {[%clk 0:02:24]} 3. Nd2 {[%clk 0:02:58]}  dxe4 {[%clk 0:02:23]} 4. Nxe4 {[%clk 0:02:57]}  Bd7 {[%clk 0:02:23]} 5. Nf3 {[%clk 0:02:55]}  Bc6 {[%clk 0:02:21]} 6. Bd3 {[%clk 0:02:54]}  Nd7 {[%clk 0:02:17]} 7. O-O {[%clk 0:02:51]}  Ngf6 {[%clk 0:02:18]} 8. Nxf6+ {[%clk 0:02:50]}  Nxf6 {[%clk 0:02:15]} 9. b3 {[%clk 0:02:36]}  Be7 {[%clk 0:02:07]} 10. Bb2 {[%clk 0:02:34]}  O-O {[%clk 0:02:02]} 11. c4 {[%clk 0:02:33]}  a5 {[%clk 0:01:57]} 12. Ne5 {[%clk 0:02:28]}  Be8 {[%clk 0:01:54]} 13. f4 {[%clk 0:02:17]}  c5 {[%clk 0:01:53]} 14. Be2 {[%clk 0:02:03]}  a4 {[%clk 0:01:34]} 15. Bf3 {[%clk 0:02:00]}  Qc7 {[%clk 0:01:29]} 16. Qe2 {[%clk 0:01:50]}  Rd8 {[%clk 0:01:29]} 17. Rad1 {[%clk 0:01:43]}  cxd4 {[%clk 0:01:30]} 18. Bxd4 {[%clk 0:01:42]}  Rxd4 {[%clk 0:01:25]} 19. Rxd4 {[%clk 0:01:41]}  Bc5 {[%clk 0:01:26]} 20. Qf2 {[%clk 0:01:41]}  Qb6 {[%clk 0:01:25]} 21. Rfd1 {[%clk 0:01:40]}  axb3 {[%clk 0:01:23]} 22. axb3 {[%clk 0:01:40]}  Qxb3 {[%clk 0:01:22]} 23. Kf1 {[%clk 0:01:05]}  Ba4 {[%clk 0:01:13]} 24. R1d2 {[%clk 0:00:50]}  Qb1+ {[%clk 0:01:09]} 25. Ke2 {[%clk 0:00:49]}  h5 {[%clk 0:00:58]} 26. Nd3 {[%clk 0:00:41]}  Bxd4 {[%clk 0:00:54]} 27. Qxd4 {[%clk 0:00:42]}  Bc6 {[%clk 0:00:52]} 28. Bxc6 {[%clk 0:00:36]}  bxc6 {[%clk 0:00:53]} 29. Ne5 {[%clk 0:00:36]}  Qh1 {[%clk 0:00:53]} 30. Nxc6 {[%clk 0:00:33]}  Qxg2+ {[%clk 0:00:51]} 0-1


[Site "https://www.chess.com"]

[Event "Titled Tuesday Blitz January 31 Late 2023"]
[White "Rian, Kapriaga"]
[Black "Toncheva, Nadya"]
[WhiteFideId "7103263"]
[BlackFideId "2924056"]
[WhiteElo "2089"]
[BlackElo "2295"]
[Result "1-0"]
[Round "05"]
[TimeControl "180+2"]
[Date "2023.01.31"]
[WhiteClock "0:00:43"]
[BlackClock "0:00:22"]

1. d4 {[%clk 0:03:00]}  d5 {[%clk 0:02:58]} 2. Nf3 {[%clk 0:03:00]}  Nf6 {[%clk 0:02:58]} 3. Bf4 {[%clk 0:03:00]}  c5 {[%clk 0:02:58]} 4. e3 {[%clk 0:03:00]}  Nc6 {[%clk 0:02:58]} 5. Nbd2 {[%clk 0:02:59]}  Qb6 {[%clk 0:02:59]} 6. dxc5 {[%clk 0:02:58]}  Qxb2 {[%clk 0:02:59]} 7. Rb1 {[%clk 0:02:54]}  Qc3 {[%clk 0:02:59]} 8. Bb5 {[%clk 0:02:52]}  g6 {[%clk 0:02:56]} 9. O-O {[%clk 0:02:38]}  Bg7 {[%clk 0:02:56]} 10. Be5 {[%clk 0:02:37]}  Qa5 {[%clk 0:02:52]} 11. c4 {[%clk 0:02:35]}  dxc4 {[%clk 0:02:21]} 12. Nxc4 {[%clk 0:02:31]}  Qd8 {[%clk 0:02:20]} 13. Qa4 {[%clk 0:02:07]}  O-O {[%clk 0:02:06]} 14. Rfd1 {[%clk 0:02:04]}  Qe8 {[%clk 0:02:04]} 15. Na5 {[%clk 0:01:54]}  Bf5 {[%clk 0:01:47]} 16. Nxb7 {[%clk 0:01:42]}  Bxb1 {[%clk 0:01:15]} 17. Bxc6 {[%clk 0:01:39]}  Qc8 {[%clk 0:01:08]} 18. Rxb1 {[%clk 0:01:38]}  Qf5 {[%clk 0:01:04]} 19. e4 {[%clk 0:01:28]}  Qe6 {[%clk 0:00:50]} 20. Na5 {[%clk 0:00:57]}  Rfd8 {[%clk 0:00:39]} 21. Bxa8 {[%clk 0:00:53]}  Rxa8 {[%clk 0:00:32]} 22. c6 {[%clk 0:00:48]}  h5 {[%clk 0:00:23]} 23. c7 {[%clk 0:00:44]}  Kh7 {[%clk 0:00:22]} 24. Ng5+ {[%clk 0:00:43]} 1-0


[Site "https://www.chess.com"]

[Event "Titled Tuesday Blitz January 31 Late 2023"]
[White "Womacka, Mathias"]
[Black "Todev, Simeon"]
[WhiteFideId "4611390"]
[BlackFideId "2925133"]
[WhiteElo "2396"]
[BlackElo "2033"]
[Result "1-0"]
[Round "05"]
[TimeControl "180+2"]
[Date "2023.01.31"]
[WhiteClock "0:00:11"]
[BlackClock "0:00:06"]

1. e4 {[%clk 0:03:00]}  c5 {[%clk 0:02:59]} 2. Nf3 {[%clk 0:02:59]}  d6 {[%clk 0:02:58]} 3. d4 {[%clk 0:02:59]}  cxd4 {[%clk 0:02:59]} 4. Nxd4 {[%clk 0:03:00]}  Nf6 {[%clk 0:02:59]} 5. Nc3 {[%clk 0:03:00]}  a6 {[%clk 0:02:57]} 6. Be2 {[%clk 0:02:59]}  e5 {[%clk 0:02:57]} 7. Nb3 {[%clk 0:02:59]}  Be6 {[%clk 0:02:58]} 8. f4 {[%clk 0:02:56]}  Nbd7 {[%clk 0:02:58]} 9. f5 {[%clk 0:02:55]}  Bxb3 {[%clk 0:02:57]} 10. axb3 {[%clk 0:02:56]}  Nc5 {[%clk 0:02:57]} 11. Bf3 {[%clk 0:02:54]}  Be7 {[%clk 0:02:53]} 12. O-O {[%clk 0:02:52]}  O-O {[%clk 0:02:51]} 13. g4 {[%clk 0:02:48]}  d5 {[%clk 0:02:49]} 14. Nxd5 {[%clk 0:02:38]}  Ncxe4 {[%clk 0:02:34]} 15. Nxe7+ {[%clk 0:02:32]}  Qxe7 {[%clk 0:02:32]} 16. g5 {[%clk 0:02:32]}  Nd6 {[%clk 0:01:51]} 17. gxf6 {[%clk 0:02:31]}  Qxf6 {[%clk 0:01:52]} 18. Bd5 {[%clk 0:02:11]}  Nxf5 {[%clk 0:01:41]} 19. Qf3 {[%clk 0:01:57]}  Qb6+ {[%clk 0:01:32]} 20. Kh1 {[%clk 0:01:55]}  Nd4 {[%clk 0:01:31]} 21. Qg2 {[%clk 0:01:07]}  Rad8 {[%clk 0:01:18]} 22. Be3 {[%clk 0:01:06]}  Qc5 {[%clk 0:01:10]} 23. Bxb7 {[%clk 0:00:57]}  Qxc2 {[%clk 0:01:05]} 24. Bxd4 {[%clk 0:00:47]}  Qxg2+ {[%clk 0:00:59]} 25. Kxg2 {[%clk 0:00:48]}  Rxd4 {[%clk 0:00:53]} 26. Bxa6 {[%clk 0:00:48]}  Rg4+ {[%clk 0:00:47]} 27. Kf3 {[%clk 0:00:44]}  Rh4 {[%clk 0:00:39]} 28. Kg3 {[%clk 0:00:44]}  Re4 {[%clk 0:00:26]} 29. Bc4 {[%clk 0:00:45]}  Re3+ {[%clk 0:00:17]} 30. Kg2 {[%clk 0:00:40]}  g6 {[%clk 0:00:12]} 31. Ra7 {[%clk 0:00:38]}  Kg7 {[%clk 0:00:13]} 32. Raxf7+ {[%clk 0:00:37]}  Rxf7 {[%clk 0:00:13]} 33. Rxf7+ {[%clk 0:00:37]}  Kh6 {[%clk 0:00:13]} 34. Re7 {[%clk 0:00:34]}  Re4 {[%clk 0:00:11]} 35. Kf3 {[%clk 0:00:32]}  Rh4 {[%clk 0:00:10]} 36. Kg3 {[%clk 0:00:32]}  Re4 {[%clk 0:00:10]} 37. Bg8 {[%clk 0:00:29]}  Re2 {[%clk 0:00:04]} 38. Rxh7+ {[%clk 0:00:26]}  Kg5 {[%clk 0:00:04]} 39. Re7 {[%clk 0:00:25]}  e4 {[%clk 0:00:03]} 40. Bc4 {[%clk 0:00:22]}  Re3+ {[%clk 0:00:02]} 41. Kf2 {[%clk 0:00:21]}  Rf3+ {[%clk 0:00:02]} 42. Ke2 {[%clk 0:00:20]}  Rh3 {[%clk 0:00:02]} 43. Rxe4 {[%clk 0:00:20]}  Rxh2+ {[%clk 0:00:02]} 44. Kd3 {[%clk 0:00:20]}  Rxb2 {[%clk 0:00:03]} 45. Kd4 {[%clk 0:00:19]}  Kf5 {[%clk 0:00:03]} 46. Re8 {[%clk 0:00:17]}  Rd2+ {[%clk 0:00:02]} 47. Kc5 {[%clk 0:00:17]}  g5 {[%clk 0:00:02]} 48. b4 {[%clk 0:00:17]}  g4 {[%clk 0:00:02]} 49. Rg8 {[%clk 0:00:16]}  Rg2 {[%clk 0:00:01]} 50. b5 {[%clk 0:00:16]}  g3 {[%clk 0:00:01]} 51. b6 {[%clk 0:00:16]}  Kf4 {[%clk 0:00:02]} 52. b7 {[%clk 0:00:15]}  Rb2 {[%clk 0:00:02]} 53. b8=Q+ {[%clk 0:00:14]}  Rxb8 {[%clk 0:00:02]} 54. Rxb8 {[%clk 0:00:14]}  Kf3 {[%clk 0:00:02]} 55. Rg8 {[%clk 0:00:14]}  Kf2 {[%clk 0:00:03]} 56. Bd5 {[%clk 0:00:14]}  g2 {[%clk 0:00:04]} 57. Rxg2+ {[%clk 0:00:13]}  Ke3 {[%clk 0:00:03]} 58. Rg4 {[%clk 0:00:13]}  Kf2 {[%clk 0:00:03]} 59. Kd4 {[%clk 0:00:13]}  Ke2 {[%clk 0:00:04]} 60. Rg2+ {[%clk 0:00:11]}  Kf1 {[%clk 0:00:05]} 61. Ke3 {[%clk 0:00:11]}  Ke1 {[%clk 0:00:06]} 62. Rg1# {[%clk 0:00:11]} 1-0


[Site "https://www.chess.com"]